Workbook

Sheet Home
A2: 1 | B2: Home
A3: 2 | B3: About
A4: 3 | B4: Angles
A5: 4 | B5: nex7_2_1
A6: 5 | B6: nex21_4_1
A7: 6 | B7: nex28_4_2
A8: 7 | B8: nex49_5_3
A9: 8 | B9: nex49_7_0
A10: 9 | B10: nex63_6_3
A11: 10 | B11: nex84_8_2
A12: 11 | B12: nex91_5_6
A13: 12 | B13: nex91_9_1
A14: 13 | B14: nex112_8_4
A15: 14 | B15: nex133_9_4
A16: 15 | B16: nex133_11_1
A17: 16 | B17: nex147_7_7
A18: 17 | B18: nex147_11_2

Sheet About
A1: Raw rotegrity / nexorade data and visuals provided by Adrian Rossiter's Antiprism software
A2: Adrian developed a new ultra fast algorithm to get quick results on nexorades.
A3: visit : | B3: http://www.antiprism.com/
A14: Calculations carried out 15 digit limit.
A15: Up to 12 digits confirmed those data by other parties / other methods.
A17: Big thanx to Chris Kitrick, who helped me along nexorade geometry,
A18: and the people of geodesichelp group like TaffGoch, Bryan L, Gerry from Quebec and few more.
A19: Me just transformed those numbers to some easier to read (for me) format.
A21: Wish you all happy modelling and building.
A22: Likhanecz Levente from Hungary.
A24: Found some mistake? Drop a mail to:
A25: likhanecz@gmail.com

Sheet Angles
A1: In case you wanna calculate angles between struts.
A2: Check on the graphic what colors the 3 struts forming a triangle.
A3: Copy/paste the corresponding central angles as a,b,c
A4: Then A,B,C angles calculated on all sheet locally.
A5: (central angles and chord lengths refers to 1/3 of a colored band - node to node)
A6: to get proper angles there is a x2 in formulas as each side consist of 2 pieces

Sheet nex7_2_1
A1: geo_1 = nex_7_(2,1) 2/3 | I1: Radius | J1: 1000
A2: R | B2: G | C2: B | D2: central angle | E2: unit chord length | F2: count | G2: by 3 | I2: Arc | J2: Chord
A3: 255 | B3: 26 | C3: 26 | D3: 26.1405495 | E3: 0.4522919497 | F3: 90 | G3: =F3/3 -> 30 | I3: =RADIANS(D3)*Radius -> 456.2386571 | J3: =E3*Radius -> 452.2919497
I11: Angle calculator
I12: central angles | J12: opposite to side
H13: a | I13: 26.1405495 | J13: =DEGREES(ACOS((COS(RADIANS(I13*2))-COS(RADIANS(I14*2))*COS(RADIANS(I15*2)))/(SIN(RADIANS(I14*2))*SIN(RADIANS(I15*2))))) -> 67.69288694 | K13: A
H14: b | I14: 26.1405495 | J14: =DEGREES(ACOS((COS(RADIANS(I14*2))-COS(RADIANS(I15*2))*COS(RADIANS(I13*2)))/(SIN(RADIANS(I15*2))*SIN(RADIANS(I13*2))))) -> 67.69288694 | K14: B
H15: c | I15: 26.1405495 | J15: =DEGREES(ACOS((COS(RADIANS(I15*2))-COS(RADIANS(I13*2))*COS(RADIANS(I14*2)))/(SIN(RADIANS(I13*2))*SIN(RADIANS(I14*2))))) -> 67.69288694 | K15: C

Sheet nex21_4_1
A1: geo_1_1 = nex_21_(4,1) 2/3 | I1: Radius | J1: 1000
A2: R | B2: G | C2: B | D2: central angle | E2: unit chord length | F2: count | G2: by 3 | I2: Arc | J2: Chord
A3: 255 | B3: 26 | C3: 26 | D3: 14.49559614 | E3: 0.2523216908 | F3: 180 | G3: =F3/3 -> 60 | I3: =RADIANS(D3)*Radius -> 252.9958797 | J3: =E3*Radius -> 252.3216908
A4: 199 | B4: 255 | C4: 26 | D4: 16.28924017 | E4: 0.2833443746 | F4: 90 | G4: =F4/3 -> 30 | I4: 284.3008736 | J4: 283.3443746
I10: Angle calculator
I11: central angles | J11: opposite to side
H12: a | I12: 14.49559614 | J12: =DEGREES(ACOS((COS(RADIANS(I12*2))-COS(RADIANS(I13*2))*COS(RADIANS(I14*2)))/(SIN(RADIANS(I13*2))*SIN(RADIANS(I14*2))))) -> 58.17248248 | K12: A
H13: b | I13: 14.49559614 | J13: =DEGREES(ACOS((COS(RADIANS(I13*2))-COS(RADIANS(I14*2))*COS(RADIANS(I12*2)))/(SIN(RADIANS(I14*2))*SIN(RADIANS(I12*2))))) -> 58.17248248 | K13: B
H14: c | I14: 16.28924017 | J14: =DEGREES(ACOS((COS(RADIANS(I14*2))-COS(RADIANS(I12*2))*COS(RADIANS(I13*2)))/(SIN(RADIANS(I12*2))*SIN(RADIANS(I13*2))))) -> 70.71975098 | K14: C

Sheet nex28_4_2
A1: geo_2 = nex_28_(4,2) 2/3 | I1: Radius | J1: 1000
A2: R | B2: G | C2: B | D2: central angle | E2: unit chord length | F2: count | G2: by 3 | I2: Arc | J2: Chord
A3: 255 | B3: 26 | C3: 26 | D3: 12.20671092 | E3: 0.2126446068 | F3: 180 | G3: =F3/3 -> 60 | I3: =RADIANS(D3)*Radius -> 213.0472964 | J3: =E3*Radius -> 212.6446068
A4: 199 | B4: 255 | C4: 26 | D4: 13.90404527 | E4: 0.2420763588 | F4: 180 | G4: =F4/3 -> 60 | I4: 242.6713694 | J4: 242.0763588
I10: Angle calculator
I11: central angles | J11: opposite to side
H12: a | I12: 12.20671092 | J12: =DEGREES(ACOS((COS(RADIANS(I12*2))-COS(RADIANS(I13*2))*COS(RADIANS(I14*2)))/(SIN(RADIANS(I13*2))*SIN(RADIANS(I14*2))))) -> 56.94928851 | K12: A
H13: b | I13: 12.20671092 | J13: =DEGREES(ACOS((COS(RADIANS(I13*2))-COS(RADIANS(I14*2))*COS(RADIANS(I12*2)))/(SIN(RADIANS(I14*2))*SIN(RADIANS(I12*2))))) -> 56.94928851 | K13: B
H14: c | I14: 13.90404527 | J14: =DEGREES(ACOS((COS(RADIANS(I14*2))-COS(RADIANS(I12*2))*COS(RADIANS(I13*2)))/(SIN(RADIANS(I12*2))*SIN(RADIANS(I13*2))))) -> 71.09597494 | K14: C

Sheet nex49_5_3
A1: geo_2_1 = nex_49_(5,3) 2/3 | I1: Radius | J1: 1000
A2: R | B2: G | C2: B | D2: central angle | E2: unit chord length | F2: count | G2: by 3 | I2: Arc | J2: Chord
A3: 255 | B3: 26 | C3: 26 | D3: 8.82140086 | E3: 0.1538104682 | F3: 180 | G3: =F3/3 -> 60 | I3: =RADIANS(D3)*Radius -> 153.9624896 | J3: =E3*Radius -> 153.8104682
A4: 26 | B4: 255 | C4: 137 | D4: 10.20323169 | E4: 0.177844774 | F4: 180 | G4: =F4/3 -> 60 | I4: 178.0799873 | J4: 177.844774
A5: 26 | B5: 88 | C5: 255 | D5: 10.29882364 | E5: 0.179506497 | F5: 90 | G5: 30 | I5: 179.7483817 | J5: 179.506497
A6: 199 | B6: 255 | C6: 26 | D6: 10.32323802 | E6: 0.1799308844 | F6: 180 | G6: 60 | I6: 180.1744929 | J6: 179.9308844
I10: Angle calculator
I11: central angles | J11: opposite to side
H12: a | I12: 8.82140086 | J12: =DEGREES(ACOS((COS(RADIANS(I12*2))-COS(RADIANS(I13*2))*COS(RADIANS(I14*2)))/(SIN(RADIANS(I13*2))*SIN(RADIANS(I14*2))))) -> 55.53361877 | K12: A
H13: b | I13: 8.82140086 | J13: =DEGREES(ACOS((COS(RADIANS(I13*2))-COS(RADIANS(I14*2))*COS(RADIANS(I12*2)))/(SIN(RADIANS(I14*2))*SIN(RADIANS(I12*2))))) -> 55.53361877 | K13: B
H14: c | I14: 10.20323169 | J14: =DEGREES(ACOS((COS(RADIANS(I14*2))-COS(RADIANS(I12*2))*COS(RADIANS(I13*2)))/(SIN(RADIANS(I12*2))*SIN(RADIANS(I13*2))))) -> 71.53017792 | K14: C

Sheet nex49_7_0
A1: geo_1_2 = nex_49_(7,0) 2/3 | I1: Radius | J1: 1000
A2: R | B2: G | C2: B | D2: central angle | E2: unit chord length | F2: count | G2: by 3 | I2: Arc | J2: Chord
A3: 255 | B3: 26 | C3: 26 | D3: 8.82140086 | E3: 0.1538104682 | F3: 180 | G3: =F3/3 -> 60 | I3: =RADIANS(D3)*Radius -> 153.9624896 | J3: =E3*Radius -> 153.8104682
A4: 26 | B4: 255 | C4: 137 | D4: 10.20323169 | E4: 0.177844774 | F4: 180 | G4: =F4/3 -> 60 | I4: 178.0799873 | J4: 177.844774
A5: 26 | B5: 88 | C5: 255 | D5: 10.29882364 | E5: 0.179506497 | F5: 90 | G5: 30 | I5: 179.7483817 | J5: 179.506497
A6: 199 | B6: 255 | C6: 26 | D6: 10.32323802 | E6: 0.1799308844 | F6: 180 | G6: 60 | I6: 180.1744929 | J6: 179.9308844
I10: Angle calculator
I11: central angles | J11: opposite to side
H12: a | I12: 10.20323169 | J12: =DEGREES(ACOS((COS(RADIANS(I12*2))-COS(RADIANS(I13*2))*COS(RADIANS(I14*2)))/(SIN(RADIANS(I13*2))*SIN(RADIANS(I14*2))))) -> 60.39066895 | K12: A
H13: b | I13: 10.29882364 | J13: =DEGREES(ACOS((COS(RADIANS(I13*2))-COS(RADIANS(I14*2))*COS(RADIANS(I12*2)))/(SIN(RADIANS(I14*2))*SIN(RADIANS(I12*2))))) -> 61.30733368 | K13: B
H14: c | I14: 10.32323802 | J14: =DEGREES(ACOS((COS(RADIANS(I14*2))-COS(RADIANS(I12*2))*COS(RADIANS(I13*2)))/(SIN(RADIANS(I12*2))*SIN(RADIANS(I13*2))))) -> 61.54558267 | K14: C

Sheet nex63_6_3
A1: geo_3 = nex_63_(6,3) 2/3 | I1: Radius | J1: 1000
A2: R | B2: G | C2: B | D2: central angle | E2: unit chord length | F2: count | G2: by 3 | I2: Arc | J2: Chord
A3: 255 | B3: 26 | C3: 26 | D3: 7.59453781 | E3: 0.132452677 | F3: 180 | G3: =F3/3 -> 60 | I3: =RADIANS(D3)*Radius -> 132.54969 | J3: =E3*Radius -> 132.452677
A4: 26 | B4: 255 | C4: 137 | D4: 8.821625812 | E4: 0.1538143827 | F4: 180 | G4: =F4/3 -> 60 | I4: 153.9664158 | J4: 153.8143827
A5: 199 | B5: 255 | C5: 26 | D5: 8.970136593 | E5: 0.1563985781 | F5: 90 | G5: 30 | I5: 156.5584179 | J5: 156.3985781
A6: 26 | B6: 88 | C6: 255 | D6: 9.097767095 | E6: 0.1586192317 | F6: 360 | G6: 120 | I6: 158.7859904 | J6: 158.6192317
I10: Angle calculator
I11: central angles | J11: opposite to side
H12: a | I12: 8.821625812 | J12: =DEGREES(ACOS((COS(RADIANS(I12*2))-COS(RADIANS(I13*2))*COS(RADIANS(I14*2)))/(SIN(RADIANS(I13*2))*SIN(RADIANS(I14*2))))) -> 58.82897739 | K12: A
H13: b | I13: 9.097767095 | J13: =DEGREES(ACOS((COS(RADIANS(I13*2))-COS(RADIANS(I14*2))*COS(RADIANS(I12*2)))/(SIN(RADIANS(I14*2))*SIN(RADIANS(I12*2))))) -> 61.82596349 | K13: B
H14: c | I14: 9.097767095 | J14: =DEGREES(ACOS((COS(RADIANS(I14*2))-COS(RADIANS(I12*2))*COS(RADIANS(I13*2)))/(SIN(RADIANS(I12*2))*SIN(RADIANS(I13*2))))) -> 61.82596349 | K14: C

Sheet nex84_8_2
A1: geo_2_2 = nex_84_(8,2) 2/3 | I1: Radius | J1: 1000
A2: R | B2: G | C2: B | D2: central angle | E2: unit chord length | F2: count | G2: by 3 | I2: Arc | J2: Chord
A3: 255 | B3: 26 | C3: 26 | D3: 6.408109076 | E3: 0.1117843191 | F3: 180 | G3: =F3/3 -> 60 | I3: =RADIANS(D3)*Radius -> 111.8426022 | J3: =E3*Radius -> 111.7843191
A4: 248 | B4: 26 | C4: 255 | D4: 7.469452428 | E4: 0.1302742396 | F4: 180 | G4: =F4/3 -> 60 | I4: 130.3665382 | J4: 130.2742396
A5: 199 | B5: 255 | C5: 26 | D5: 7.747753 | E5: 0.1351207967 | F5: 360 | G5: 120 | I5: 135.2237995 | J5: 135.1207967
A6: 26 | B6: 88 | C6: 255 | D6: 7.800973883 | E6: 0.1360475394 | F6: 180 | G6: 60 | I6: 136.1526791 | J6: 136.0475394
A7: 26 | B7: 255 | C7: 137 | D7: 7.95387785 | E7: 0.1387099137 | F7: 180 | G7: 60 | I7: 138.8213568 | J7: 138.7099137
I10: Angle calculator
I11: central angles | J11: opposite to side
H12: a | I12: 7.469452428 | J12: =DEGREES(ACOS((COS(RADIANS(I12*2))-COS(RADIANS(I13*2))*COS(RADIANS(I14*2)))/(SIN(RADIANS(I13*2))*SIN(RADIANS(I14*2))))) -> 58.23282345 | K12: A
H13: b | I13: 7.747753 | J13: =DEGREES(ACOS((COS(RADIANS(I13*2))-COS(RADIANS(I14*2))*COS(RADIANS(I12*2)))/(SIN(RADIANS(I14*2))*SIN(RADIANS(I12*2))))) -> 61.77651751 | K13: B
H14: c | I14: 7.747753 | J14: =DEGREES(ACOS((COS(RADIANS(I14*2))-COS(RADIANS(I12*2))*COS(RADIANS(I13*2)))/(SIN(RADIANS(I12*2))*SIN(RADIANS(I13*2))))) -> 61.77651751 | K14: C

Sheet nex91_5_6
A1: geo_3_1 = nex_91_(5,6) 2/3 | I1: Radius | J1: 1000
A2: R | B2: G | C2: B | D2: central angle | E2: unit chord length | F2: count | G2: by 3 | I2: Arc | J2: Chord
A3: 255 | B3: 26 | C3: 26 | D3: 6.108002063 | E3: 0.106554274 | F3: 180 | G3: =F3/3 -> 60 | I3: =RADIANS(D3)*Radius -> 106.6047467 | J3: =E3*Radius -> 106.554274
A4: 26 | B4: 88 | C4: 255 | D4: 7.12522043 | E4: 0.1242784381 | F4: 180 | G4: =F4/3 -> 60 | I4: 124.3585564 | J4: 124.2784381
A5: 248 | B5: 26 | C5: 255 | D5: 7.416523545 | E5: 0.1293524043 | F5: 180 | G5: 60 | I5: 129.4427549 | J5: 129.3524043
A6: 199 | B6: 255 | C6: 26 | D6: 7.420175658 | E6: 0.1294160122 | F6: 180 | G6: 60 | I6: 129.5064963 | J6: 129.4160122
A7: 26 | B7: 255 | C7: 137 | D7: 7.452076767 | E7: 0.1299716197 | F7: 180 | G7: 60 | I7: 130.0632757 | J7: 129.9716197
A8: 197 | B8: 255 | C8: 128 | D8: 7.61680531 | E8: 0.1328404625 | F8: 90 | G8: 30 | I8: 132.9383311 | J8: 132.8404625
A9: 255 | B9: 154 | C9: 128 | D9: 7.635061581 | E9: 0.1331583892 | F9: 180 | G9: =F9/3 -> 60 | I9: =RADIANS(D9)*Radius -> 133.2569632 | J9: =E9*Radius -> 133.1583892
I11: Angle calculator
I12: central angles | J12: opposite to side
H13: a | I13: 7.61680531 | J13: =DEGREES(ACOS((COS(RADIANS(I13*2))-COS(RADIANS(I14*2))*COS(RADIANS(I15*2)))/(SIN(RADIANS(I14*2))*SIN(RADIANS(I15*2))))) -> 62.20102742 | K13: A
H14: b | I14: 7.452076767 | J14: =DEGREES(ACOS((COS(RADIANS(I14*2))-COS(RADIANS(I15*2))*COS(RADIANS(I13*2)))/(SIN(RADIANS(I15*2))*SIN(RADIANS(I13*2))))) -> 59.98526035 | K14: B
H15: c | I15: 7.416523545 | J15: =DEGREES(ACOS((COS(RADIANS(I15*2))-COS(RADIANS(I13*2))*COS(RADIANS(I14*2)))/(SIN(RADIANS(I13*2))*SIN(RADIANS(I14*2))))) -> 59.52590719 | K15: C

Sheet nex91_9_1
A1: geo_1_3 = nex_91_(9,1) 2/3 | I1: Radius | J1: 1000
A2: R | B2: G | C2: B | D2: central angle | E2: unit chord length | F2: count | G2: by 3 | I2: Arc | J2: Chord
A3: 255 | B3: 26 | C3: 26 | D3: 6.108002063 | E3: 0.106554274 | F3: 180 | G3: =F3/3 -> 60 | I3: =RADIANS(D3)*Radius -> 106.6047467 | J3: =E3*Radius -> 106.554274
A4: 26 | B4: 88 | C4: 255 | D4: 7.12522043 | E4: 0.1242784381 | F4: 180 | G4: =F4/3 -> 60 | I4: 124.3585564 | J4: 124.2784381
A5: 248 | B5: 26 | C5: 255 | D5: 7.416523545 | E5: 0.1293524043 | F5: 180 | G5: 60 | I5: 129.4427549 | J5: 129.3524043
A6: 199 | B6: 255 | C6: 26 | D6: 7.420175658 | E6: 0.1294160122 | F6: 180 | G6: 60 | I6: 129.5064963 | J6: 129.4160122
A7: 26 | B7: 255 | C7: 137 | D7: 7.452076767 | E7: 0.1299716197 | F7: 180 | G7: 60 | I7: 130.0632757 | J7: 129.9716197
A8: 197 | B8: 255 | C8: 128 | D8: 7.61680531 | E8: 0.1328404625 | F8: 90 | G8: 30 | I8: 132.9383311 | J8: 132.8404625
A9: 255 | B9: 154 | C9: 128 | D9: 7.635061581 | E9: 0.1331583892 | F9: 180 | G9: 60 | I9: =RADIANS(D9)*Radius -> 133.2569632 | J9: =E9*Radius -> 133.1583892
I11: Angle calculator
I12: central angles | J12: opposite to side
H13: a | I13: 7.12522043 | J13: =DEGREES(ACOS((COS(RADIANS(I13*2))-COS(RADIANS(I14*2))*COS(RADIANS(I15*2)))/(SIN(RADIANS(I14*2))*SIN(RADIANS(I15*2))))) -> 57.94653421 | K13: A
H14: b | I14: 7.416523545 | J14: =DEGREES(ACOS((COS(RADIANS(I14*2))-COS(RADIANS(I15*2))*COS(RADIANS(I13*2)))/(SIN(RADIANS(I15*2))*SIN(RADIANS(I13*2))))) -> 61.8168282 | K14: B
H15: c | I15: 7.420175658 | J15: =DEGREES(ACOS((COS(RADIANS(I15*2))-COS(RADIANS(I13*2))*COS(RADIANS(I14*2)))/(SIN(RADIANS(I13*2))*SIN(RADIANS(I14*2))))) -> 61.86834514 | K15: C

Sheet nex112_8_4
A1: geo_4 = nex_112_(8,4) 2/3 | I1: Radius | J1: 1000
A2: R | B2: G | C2: B | D2: central angle | E2: unit chord length | F2: count | G2: by 3 | I2: Arc | J2: Chord
A3: 255 | B3: 26 | C3: 26 | D3: 5.396192606 | E3: 0.09414652357 | F3: 180 | G3: =F3/3 -> 60 | I3: =RADIANS(D3)*Radius -> 94.18132804 | J3: =E3*Radius -> 94.14652357
A4: 26 | B4: 255 | C4: 137 | D4: 6.305600427 | E4: 0.1099979579 | F4: 180 | G4: =F4/3 -> 60 | I4: 110.0534888 | J4: 109.9979579
A5: 26 | B5: 88 | C5: 255 | D5: 6.605631577 | E5: 0.1152261804 | F5: 360 | G5: 120 | I5: 115.2900202 | J5: 115.2261804
A6: 199 | B6: 255 | C6: 26 | D6: 6.641482444 | E6: 0.1158508511 | F6: 180 | G6: 60 | I6: 115.9157359 | J6: 115.8508511
A7: 248 | B7: 26 | C7: 255 | D7: 6.837595186 | E7: 0.1192677456 | F7: 360 | G7: 120 | I7: 119.3385489 | J7: 119.2677456
A8: 255 | B8: 154 | C8: 128 | D8: 6.861871055 | E8: 0.1196906827 | F8: 180 | G8: 60 | I8: 119.7622428 | J8: 119.6906827
I10: Angle calculator
I11: central angles | J11: opposite to side
H12: a | I12: 6.837595186 | J12: =DEGREES(ACOS((COS(RADIANS(I12*2))-COS(RADIANS(I13*2))*COS(RADIANS(I14*2)))/(SIN(RADIANS(I13*2))*SIN(RADIANS(I14*2))))) -> 60.3581084 | K12: A
H13: b | I13: 6.837595186 | J13: =DEGREES(ACOS((COS(RADIANS(I13*2))-COS(RADIANS(I14*2))*COS(RADIANS(I12*2)))/(SIN(RADIANS(I14*2))*SIN(RADIANS(I12*2))))) -> 60.3581084 | K13: B
H14: c | I14: 6.861871055 | J14: =DEGREES(ACOS((COS(RADIANS(I14*2))-COS(RADIANS(I12*2))*COS(RADIANS(I13*2)))/(SIN(RADIANS(I12*2))*SIN(RADIANS(I13*2))))) -> 60.71064179 | K14: C

Sheet nex133_9_4
A1: geo_2_3 = nex_133_(9,4) 2/3 | I1: Radius | J1: 1000
A2: R | B2: G | C2: B | D2: central angle | E2: unit chord length | F2: count | G2: by 3 | I2: Arc | J2: Chord
A3: 255 | B3: 26 | C3: 26 | D3: 4.871746384 | E3: 0.08500240318 | F3: 180 | G3: =F3/3 -> 60 | I3: =RADIANS(D3)*Radius -> 85.02801472 | J3: =E3*Radius -> 85.00240318
A4: 26 | B4: 88 | C4: 255 | D4: 5.699132927 | E4: 0.09942763317 | F4: 180 | G4: =F4/3 -> 60 | I4: 99.46863408 | J4: 99.42763317
A5: 248 | B5: 26 | C5: 255 | D5: 5.985797253 | E5: 0.1044243667 | F5: 180 | G5: 60 | I5: 104.4718704 | J5: 104.4243667
A6: 199 | B6: 255 | C6: 26 | D6: 5.986405675 | E6: 0.1044349712 | F6: 180 | G6: 60 | I6: 104.4824894 | J6: 104.4349712
A7: 26 | B7: 255 | C7: 137 | D7: 6.047282149 | E7: 0.1054960018 | F7: 180 | G7: 60 | I7: 105.5449843 | J7: 105.4960018
A8: 128 | B8: 135 | C8: 255 | D8: 6.236016155 | E8: 0.1087853013 | F8: 90 | G8: 30 | I8: 108.8390141 | J8: 108.7853013
A9: 128 | B9: 255 | C9: 216 | D9: 6.240609378 | E9: 0.1088653494 | F9: 180 | G9: =F9/3 -> 60 | I9: =RADIANS(D9)*Radius -> 108.919181 | J9: =E9*Radius -> 108.8653494
A10: 255 | B10: 154 | C10: 128 | D10: 6.243658199 | E10: 0.1089184824 | F10: 180 | G10: 60 | I10: 108.9723929 | J10: 108.9184824
A11: 197 | B11: 255 | C11: 128 | D11: 6.264686017 | E11: 0.1092849406 | F11: 180 | G11: 60 | I11: 109.3393976 | J11: 109.2849406
A12: 255 | B12: 128 | C12: 232 | D12: 6.299984441 | E12: 0.1099000887 | F12: 180 | G12: 60 | I12: 109.9554713 | J12: 109.9000887
I14: Angle calculator
I15: central angles | J15: opposite to side
H16: a | I16: 5.986405675 | J16: =DEGREES(ACOS((COS(RADIANS(I16*2))-COS(RADIANS(I17*2))*COS(RADIANS(I18*2)))/(SIN(RADIANS(I17*2))*SIN(RADIANS(I18*2))))) -> 58.64441616 | K16: A
H17: b | I17: 6.243658199 | J17: =DEGREES(ACOS((COS(RADIANS(I17*2))-COS(RADIANS(I18*2))*COS(RADIANS(I16*2)))/(SIN(RADIANS(I18*2))*SIN(RADIANS(I16*2))))) -> 62.88337879 | K17: B
H18: c | I18: 6.047282149 | J18: =DEGREES(ACOS((COS(RADIANS(I18*2))-COS(RADIANS(I16*2))*COS(RADIANS(I17*2)))/(SIN(RADIANS(I16*2))*SIN(RADIANS(I17*2))))) -> 59.59954981 | K18: C

Sheet nex133_11_1
A1: geo_3_2 = nex_133_(11,1) 2/3 | I1: Radius | J1: 1000
A2: R | B2: G | C2: B | D2: central angle | E2: unit chord length | F2: count | G2: by 3 | I2: Arc | J2: Chord
A3: 255 | B3: 26 | C3: 26 | D3: 4.871746384 | E3: 0.08500240318 | F3: 180 | G3: =F3/3 -> 60 | I3: =RADIANS(D3)*Radius -> 85.02801472 | J3: =E3*Radius -> 85.00240318
A4: 26 | B4: 88 | C4: 255 | D4: 5.699132927 | E4: 0.09942763317 | F4: 180 | G4: =F4/3 -> 60 | I4: 99.46863408 | J4: 99.42763317
A5: 248 | B5: 26 | C5: 255 | D5: 5.985797253 | E5: 0.1044243667 | F5: 180 | G5: 60 | I5: 104.4718704 | J5: 104.4243667
A6: 199 | B6: 255 | C6: 26 | D6: 5.986405675 | E6: 0.1044349712 | F6: 180 | G6: 60 | I6: 104.4824894 | J6: 104.4349712
A7: 26 | B7: 255 | C7: 137 | D7: 6.047282149 | E7: 0.1054960018 | F7: 180 | G7: 60 | I7: 105.5449843 | J7: 105.4960018
A8: 128 | B8: 135 | C8: 255 | D8: 6.236016155 | E8: 0.1087853013 | F8: 90 | G8: 30 | I8: 108.8390141 | J8: 108.7853013
A9: 128 | B9: 255 | C9: 216 | D9: 6.240609378 | E9: 0.1088653494 | F9: 180 | G9: 60 | I9: =RADIANS(D9)*Radius -> 108.919181 | J9: =E9*Radius -> 108.8653494
A10: 255 | B10: 154 | C10: 128 | D10: 6.243658199 | E10: 0.1089184824 | F10: 180 | G10: 60 | I10: 108.9723929 | J10: 108.9184824
A11: 197 | B11: 255 | C11: 128 | D11: 6.264686017 | E11: 0.1092849406 | F11: 180 | G11: 60 | I11: 109.3393976 | J11: 109.2849406
A12: 255 | B12: 128 | C12: 232 | D12: 6.299984441 | E12: 0.1099000887 | F12: 180 | G12: 60 | I12: 109.9554713 | J12: 109.9000887
I14: Angle calculator
I15: central angles | J15: opposite to side
H16: a | I16: 5.985797253 | J16: =DEGREES(ACOS((COS(RADIANS(I16*2))-COS(RADIANS(I17*2))*COS(RADIANS(I18*2)))/(SIN(RADIANS(I17*2))*SIN(RADIANS(I18*2))))) -> 58.65443325 | K16: A
H17: b | I17: 6.240609378 | J17: =DEGREES(ACOS((COS(RADIANS(I17*2))-COS(RADIANS(I18*2))*COS(RADIANS(I16*2)))/(SIN(RADIANS(I18*2))*SIN(RADIANS(I16*2))))) -> 62.85274167 | K17: B
H18: c | I18: 6.047282149 | J18: =DEGREES(ACOS((COS(RADIANS(I18*2))-COS(RADIANS(I16*2))*COS(RADIANS(I17*2)))/(SIN(RADIANS(I16*2))*SIN(RADIANS(I17*2))))) -> 59.61974027 | K18: C

Sheet nex147_7_7
A1: geo_1_4 = nex_147_(7,7) 2/3 | I1: Radius | J1: 1000
A2: R | B2: G | C2: B | D2: central angle | E2: unit chord length | F2: count | G2: by 3 | I2: Arc | J2: Chord
A3: 255 | B3: 26 | C3: 26 | D3: 4.588424737 | E3: 0.08006172096 | F3: 180 | G3: =F3/3 -> 60 | I3: =RADIANS(D3)*Radius -> 80.08311914 | J3: =E3*Radius -> 80.06172096
A4: 26 | B4: 88 | C4: 255 | D4: 5.370673592 | E4: 0.09370162418 | F4: 180 | G4: =F4/3 -> 60 | I4: 93.73593724 | J4: 93.70162418
A5: 248 | B5: 26 | C5: 255 | D5: 5.653054306 | E5: 0.09862439593 | F5: 180 | G5: 60 | I5: 98.66441044 | J5: 98.62439593
A6: 199 | B6: 255 | C6: 26 | D6: 5.653703817 | E6: 0.09863571824 | F6: 180 | G6: 60 | I6: 98.67574654 | J6: 98.63571824
A7: 26 | B7: 255 | C7: 137 | D7: 5.710740733 | E7: 0.0996299766 | F7: 180 | G7: 60 | I7: 99.67122852 | J7: 99.6299766
A8: 128 | B8: 135 | C8: 255 | D8: 5.905722015 | E8: 0.103028671 | F8: 180 | G8: 60 | I8: 103.0742939 | J8: 103.028671
A9: 197 | B9: 255 | C9: 128 | D9: 5.908980819 | E9: 0.1030854723 | F9: 180 | G9: 60 | I9: =RADIANS(D9)*Radius -> 103.1311707 | J9: =E9*Radius -> 103.0854723
A10: 255 | B10: 154 | C10: 128 | D10: 5.937030618 | E10: 0.1035743799 | F10: 180 | G10: 60 | I10: 103.6207321 | J10: 103.5743799
A11: 128 | B11: 61 | C11: 13 | D11: 5.95243629 | E11: 0.1038428978 | F11: 90 | G11: 30 | I11: 103.8896118 | J11: 103.8428978
A12: 128 | B12: 255 | C12: 216 | D12: 5.968732419 | E12: 0.1041269343 | F12: 180 | G12: 60 | I12: 104.1740329 | J12: 104.1269343
A13: 255 | B13: 128 | C13: 232 | D13: 5.991500245 | E13: 0.1045237668 | F13: 180 | G13: =F13/3 -> 60 | I13: =RADIANS(D13)*Radius -> 104.5714064 | J13: =E13*Radius -> 104.5237668
I15: Angle calculator
I16: central angles | J16: opposite to side
H17: a | I17: 5.905722015 | J17: =DEGREES(ACOS((COS(RADIANS(I17*2))-COS(RADIANS(I18*2))*COS(RADIANS(I19*2)))/(SIN(RADIANS(I18*2))*SIN(RADIANS(I19*2))))) -> 59.92260077 | K17: A
H18: b | I18: 5.95243629 | J18: =DEGREES(ACOS((COS(RADIANS(I18*2))-COS(RADIANS(I19*2))*COS(RADIANS(I17*2)))/(SIN(RADIANS(I19*2))*SIN(RADIANS(I17*2))))) -> 60.70309418 | K18: B
H19: c | I19: 5.937030618 | J19: =DEGREES(ACOS((COS(RADIANS(I19*2))-COS(RADIANS(I17*2))*COS(RADIANS(I18*2)))/(SIN(RADIANS(I17*2))*SIN(RADIANS(I18*2))))) -> 60.44365846 | K19: C

Sheet nex147_11_2
A1: geo_4_1 = nex_147_(11,2) 2/3 | I1: Radius | J1: 1000
A2: R | B2: G | C2: B | D2: central angle | E2: unit chord length | F2: count | G2: by 3 | I2: Arc | J2: Chord
A3: 255 | B3: 26 | C3: 26 | D3: 4.588424737 | E3: 0.08006172096 | F3: 180 | G3: =F3/3 -> 60 | I3: =RADIANS(D3)*Radius -> 80.08311914 | J3: =E3*Radius -> 80.06172096
A4: 26 | B4: 88 | C4: 255 | D4: 5.370673592 | E4: 0.09370162418 | F4: 180 | G4: =F4/3 -> 60 | I4: 93.73593724 | J4: 93.70162418
A5: 248 | B5: 26 | C5: 255 | D5: 5.653054306 | E5: 0.09862439593 | F5: 180 | G5: 60 | I5: 98.66441044 | J5: 98.62439593
A6: 199 | B6: 255 | C6: 26 | D6: 5.653703817 | E6: 0.09863571824 | F6: 180 | G6: 60 | I6: 98.67574654 | J6: 98.63571824
A7: 26 | B7: 255 | C7: 137 | D7: 5.710740733 | E7: 0.0996299766 | F7: 180 | G7: 60 | I7: 99.67122852 | J7: 99.6299766
A8: 128 | B8: 135 | C8: 255 | D8: 5.905722015 | E8: 0.103028671 | F8: 180 | G8: 60 | I8: 103.0742939 | J8: 103.028671
A9: 255 | B9: 154 | C9: 128 | D9: 5.908980819 | E9: 0.1030854723 | F9: 180 | G9: 60 | I9: =RADIANS(D9)*Radius -> 103.1311707 | J9: =E9*Radius -> 103.0854723
A10: 197 | B10: 255 | C10: 128 | D10: 5.937030618 | E10: 0.1035743799 | F10: 180 | G10: 60 | I10: 103.6207321 | J10: 103.5743799
A11: 128 | B11: 61 | C11: 13 | D11: 5.95243629 | E11: 0.1038428978 | F11: 90 | G11: 30 | I11: 103.8896118 | J11: 103.8428978
A12: 128 | B12: 255 | C12: 216 | D12: 5.968732419 | E12: 0.1041269343 | F12: 180 | G12: 60 | I12: 104.1740329 | J12: 104.1269343
A13: 255 | B13: 128 | C13: 232 | D13: 5.991500245 | E13: 0.1045237668 | F13: 180 | G13: 60 | I13: =RADIANS(D13)*Radius -> 104.5714064 | J13: =E13*Radius -> 104.5237668
I15: Angle calculator
I16: central angles | J16: opposite to side
H17: a | I17: 5.370673592 | J17: =DEGREES(ACOS((COS(RADIANS(I17*2))-COS(RADIANS(I18*2))*COS(RADIANS(I19*2)))/(SIN(RADIANS(I18*2))*SIN(RADIANS(I19*2))))) -> 57.03067516 | K17: A
H18: b | I18: 5.653703817 | J18: =DEGREES(ACOS((COS(RADIANS(I18*2))-COS(RADIANS(I19*2))*COS(RADIANS(I17*2)))/(SIN(RADIANS(I19*2))*SIN(RADIANS(I17*2))))) -> 61.95929447 | K18: B
H19: c | I19: 5.653054306 | J19: =DEGREES(ACOS((COS(RADIANS(I19*2))-COS(RADIANS(I17*2))*COS(RADIANS(I18*2)))/(SIN(RADIANS(I17*2))*SIN(RADIANS(I18*2))))) -> 61.94709947 | K19: C
